[Event "MČR juniorů a juniorek v rapid šachu 2023"]
[Site "Czech Republic"]
[Date "2023.09.24"]
[Round "8.18"]
[White "Havelkova, Beata"]
[Black "Mrazek, Adam"]
[Result "0-1"]
[TimeControl "20 min + 5 sec per move"]
[WhiteFideId "23709405"]
[BlackFideId "23725010"]
[WhiteElo "1494"]
[BlackElo "1753"]

1. e4 {[%clk 00:20:08]} {[%emt 00:00:01]} g6 {[%clk 00:20:07]} {[%emt
00:00:04]} 2. d4 {[%clk 00:20:12]} {[%emt 00:00:01]} Bg7 {[%clk 00:20:10]}
{[%emt 00:00:02]} 3. Be3 {[%clk 00:20:15]} {[%emt 00:00:01]} d6 {[%clk
00:20:14]} {[%emt 00:00:01]} 4. f4 {[%clk 00:20:15]} {[%emt 00:00:05]} Nf6
{[%clk 00:20:02]} {[%emt 00:00:17]} 5. Nc3 {[%clk 00:20:01]} {[%emt 00:00:18]}
O-O {[%clk 00:19:40]} {[%emt 00:00:27]} 6. h3 {[%clk 00:20:01]} {[%emt
00:00:05]} Nc6 {[%clk 00:18:50]} {[%emt 00:00:57]} 7. Qd2 {[%clk 00:19:59]}
{[%emt 00:00:07]} e5 {[%clk 00:18:33]} {[%emt 00:00:22]} 8. d5 {[%clk
00:19:12]} {[%emt 00:00:51]} Nd4 {[%clk 00:16:09]} {[%emt 00:02:29]} 9. fxe5
{[%clk 00:18:31]} {[%emt 00:00:47]} dxe5 {[%clk 00:16:09]} {[%emt 00:00:05]} 10.
O-O-O {[%clk 00:18:03]} {[%emt 00:00:32]} Ne8 {[%clk 00:13:29]} {[%emt
00:02:45]} 11. Bxd4 {[%clk 00:17:37]} {[%emt 00:00:31]} exd4 {[%clk 00:13:25]}
{[%emt 00:00:10]} 12. Nce2 {[%clk 00:17:36]} {[%emt 00:00:06]} Nd6 {[%clk
00:12:51]} {[%emt 00:00:38]} 13. Qd3 {[%clk 00:16:57]} {[%emt 00:00:45]} Re8
{[%clk 00:11:21]} {[%emt 00:01:35]} 14. Ng3 {[%clk 00:17:00]} {[%emt 00:00:01]}
Bd7 {[%clk 00:09:00]} {[%emt 00:02:26]} 15. Nf3 {[%clk 00:16:46]} {[%emt
00:00:18]} Bb5 {[%clk 00:08:40]} {[%emt 00:00:26]} 16. Qd2 {[%clk 00:15:13]}
{[%emt 00:01:38]} Bxf1 {[%clk 00:07:38]} {[%emt 00:01:08]} 17. Rhxf1 {[%clk
00:15:17]} Nxe4 {[%clk 00:07:34]} {[%emt 00:00:08]} 18. Nxe4 {[%clk 00:15:15]}
{[%emt 00:00:06]} Rxe4 {[%clk 00:07:25]} {[%emt 00:00:15]} 19. Ng5 {[%clk
00:13:57]} {[%emt 00:01:23]} Re7 {[%clk 00:06:46]} {[%emt 00:00:44]} 20. Qf4
{[%clk 00:13:08]} {[%emt 00:00:54]} Qxd5 {[%clk 00:06:07]} {[%emt 00:00:45]} 21.
c3 {[%clk 00:12:21]} {[%emt 00:00:52]} Qxa2 {[%clk 00:04:31]} {[%emt 00:01:42]}
22. cxd4 {[%clk 00:11:24]} {[%emt 00:01:02]} Rae8 {[%clk 00:03:09]} {[%emt
00:01:25]} 23. Rf2 {[%clk 00:09:55]} {[%emt 00:01:35]} a5 {[%clk 00:00:51]}
{[%emt 00:02:24]} 24. Rd3 {[%clk 00:08:32]} {[%emt 00:01:27]} Re1+ {[%clk
00:00:33]} {[%emt 00:00:24]} 25. Kc2 {[%clk 00:08:03]} {[%emt 00:00:34]} Qb1+
{[%clk 00:00:22]} {[%emt 00:00:15]} 26. Kc3 {[%clk 00:07:48]} {[%emt 00:00:20]}
Rc1+ {[%clk 00:00:19]} {[%emt 00:00:08]} 27. Qxc1 {[%clk 00:05:35]} {[%emt
00:02:17]} Qxc1+ {[%clk 00:00:21]} {[%emt 00:00:03]} 28. Rc2 {[%clk 00:05:39]}
Qxg5 {[%clk 00:00:22]} {[%emt 00:00:04]} 29. b3 {[%clk 00:05:25]} {[%emt
00:00:20]} c5 {[%clk 00:00:22]} {[%emt 00:00:05]} 0-1

[Event "MČR juniorů a juniorek v rapid šachu 2023"]
[Site "Czech Republic"]
[Date "2023.09.24"]
[Round "8.19"]
[White "Hruby, Filip"]
[Black "Stastna, Martina"]
[Result "1-0"]
[TimeControl "20 min + 5 sec per move"]
[WhiteFideId "23721480"]
[BlackFideId "385123"]
[WhiteElo "1460"]
[BlackElo "1725"]

1. e4 {[%clk 00:20:08]} {[%emt 00:00:01]} e5 {[%clk 00:20:09]} {[%emt
00:00:02]} 2. Nc3 {[%clk 00:20:10]} {[%emt 00:00:02]} Nf6 {[%clk 00:20:08]}
{[%emt 00:00:07]} 3. f4 {[%clk 00:20:11]} {[%emt 00:00:03]} d6 {[%clk
00:19:49]} {[%emt 00:00:24]} 4. Nf3 {[%clk 00:20:10]} {[%emt 00:00:06]} Nc6
{[%clk 00:19:52]} {[%emt 00:00:03]} 5. Bb5 {[%clk 00:20:09]} {[%emt 00:00:06]}
Bg4 {[%clk 00:19:00]} {[%emt 00:00:56]} 6. h3 {[%clk 00:20:08]} {[%emt
00:00:06]} Bxf3 {[%clk 00:18:49]} {[%emt 00:00:17]} 7. Qxf3 {[%clk 00:20:11]}
{[%emt 00:00:02]} Qd7 {[%clk 00:18:45]} {[%emt 00:00:08]} 8. d3 {[%clk
00:18:38]} {[%emt 00:01:38]} a6 {[%clk 00:18:48]} {[%emt 00:00:02]} 9. Bxc6
{[%clk 00:18:40]} {[%emt 00:00:03]} Qxc6 {[%clk 00:18:43]} {[%emt 00:00:10]} 10.
O-O {[%clk 00:18:17]} {[%emt 00:00:27]} exf4 {[%clk 00:17:51]} {[%emt
00:00:58]} 11. Bxf4 {[%clk 00:18:12]} {[%emt 00:00:10]} O-O-O {[%clk 00:17:54]}
{[%emt 00:00:02]} 12. Bg5 {[%clk 00:17:19]} {[%emt 00:00:57]} Be7 {[%clk
00:16:38]} {[%emt 00:01:22]} 13. Kh1 {[%clk 00:16:07]} {[%emt 00:01:17]} Rhf8
{[%clk 00:16:00]} {[%emt 00:00:43]} 14. Bxf6 {[%clk 00:14:32]} {[%emt
00:01:40]} Bxf6 {[%clk 00:16:03]} {[%emt 00:00:02]} 15. Nd5 {[%clk 00:14:34]}
{[%emt 00:00:03]} Kb8 {[%clk 00:14:27]} {[%emt 00:01:42]} 16. c3 {[%clk
00:13:49]} {[%emt 00:00:50]} Bg5 {[%clk 00:12:46]} {[%emt 00:01:45]} 17. Qh5
{[%clk 00:11:37]} {[%emt 00:02:10]} Bh6 {[%clk 00:11:37]} {[%emt 00:01:21]} 18.
Rab1 {[%clk 00:08:53]} {[%emt 00:02:49]} f6 {[%clk 00:09:48]} {[%emt 00:01:55]}
19. Ne7 {[%clk 00:08:29]} {[%emt 00:00:26]} Qa4 {[%clk 00:07:09]} {[%emt
00:02:45]} 20. Nf5 {[%clk 00:07:34]} {[%emt 00:01:00]} Qxa2 {[%clk 00:06:53]}
{[%emt 00:00:22]} 21. Nxh6 {[%clk 00:07:36]} {[%emt 00:00:03]} gxh6 {[%clk
00:06:48]} {[%emt 00:00:11]} 22. Qxh6 {[%clk 00:07:38]} {[%emt 00:00:02]} d5
{[%clk 00:06:40]} {[%emt 00:00:14]} 23. Qxh7 {[%clk 00:06:26]} {[%emt
00:01:17]} dxe4 {[%clk 00:05:21]} {[%emt 00:01:23]} 24. Qxe4 {[%clk 00:06:12]}
{[%emt 00:00:19]} Rde8 {[%clk 00:05:11]} {[%emt 00:00:15]} 25. Qf3 {[%clk
00:05:41]} {[%emt 00:00:35]} Re5 {[%clk 00:04:11]} {[%emt 00:01:05]} 26. Rbd1
{[%clk 00:04:39]} {[%emt 00:01:08]} Rg5 {[%clk 00:03:59]} {[%emt 00:00:17]} 27.
Rd2 {[%clk 00:04:22]} {[%emt 00:00:22]} f5 {[%clk 00:03:14]} {[%emt 00:00:51]}
28. Qf4 {[%clk 00:03:53]} {[%emt 00:00:33]} Qg8 {[%clk 00:02:53]} {[%emt
00:00:26]} 29. Re1 {[%clk 00:03:07]} {[%emt 00:00:50]} Rg7 {[%clk 00:01:44]}
{[%emt 00:01:15]} 30. Re5 {[%clk 00:03:02]} {[%emt 00:00:08]} Qh7 {[%clk
00:01:45]} {[%emt 00:00:06]} 31. Re3 {[%clk 00:02:21]} {[%emt 00:00:46]} Rg4
{[%clk 00:01:38]} {[%emt 00:00:12]} 32. Qf3 {[%clk 00:01:18]} {[%emt 00:01:07]}
Rg7 {[%clk 00:01:39]} {[%emt 00:00:06]} 33. Rde2 {[%clk 00:00:53]} {[%emt
00:00:30]} Qg8 {[%clk 00:00:39]} {[%emt 00:01:04]} 34. Qf4 {[%clk 00:00:43]}
{[%emt 00:00:15]} Qh7 {[%clk 00:00:20]} {[%emt 00:00:25]} 35. Re8+ {[%clk
00:00:40]} {[%emt 00:00:08]} Rxe8 {[%clk 00:00:24]} {[%emt 00:00:01]} 36. Rxe8+
{[%clk 00:00:44]} {[%emt 00:00:01]} Ka7 {[%clk 00:00:28]} 37. Qe3+ {[%clk
00:00:44]} {[%emt 00:00:03]} b6 {[%clk 00:00:23]} {[%emt 00:00:12]} 38. Qf3
{[%clk 00:00:46]} {[%emt 00:00:02]} c6 {[%clk 00:00:20]} {[%emt 00:00:09]} 39.
Qxc6 {[%clk 00:00:47]} {[%emt 00:00:04]} Rb7 {[%clk 00:00:24]} 40. Qc8 {[%clk
00:00:49]} {[%emt 00:00:03]} 1-0

[Event "MČR juniorů a juniorek v rapid šachu 2023"]
[Site "Czech Republic"]
[Date "2023.09.24"]
[Round "8.20"]
[White "Novotny, Dominik"]
[Black "Janouskova, Adela"]
[Result "0-1"]
[TimeControl "20 min + 5 sec per move"]
[WhiteFideId "23755601"]
[BlackFideId "23709804"]
[WhiteElo "1707"]
[BlackElo "1442"]

1. e4 {[%clk 00:18:48]} {[%emt 00:01:21]} c5 {[%clk 00:20:07]} {[%emt
00:00:03]} 2. b3 {[%clk 00:18:55]} {[%emt 00:00:03]} d6 {[%clk 00:20:05]}
{[%emt 00:00:12]} 3. Bb2 {[%clk 00:18:59]} {[%emt 00:00:01]} Nc6 {[%clk
00:20:04]} {[%emt 00:00:07]} 4. Bb5 {[%clk 00:18:59]} {[%emt 00:00:04]} Bd7
{[%clk 00:20:02]} {[%emt 00:00:07]} 5. f4 {[%clk 00:18:52]} {[%emt 00:00:12]}
e6 {[%clk 00:19:12]} {[%emt 00:00:55]} 6. Nc3 {[%clk 00:18:41]} {[%emt
00:00:16]} a6 {[%clk 00:18:47]} {[%emt 00:00:31]} 7. Bxc6 {[%clk 00:18:40]}
{[%emt 00:00:06]} Bxc6 {[%clk 00:18:49]} {[%emt 00:00:02]} 8. d3 {[%clk
00:18:40]} {[%emt 00:00:05]} Ne7 {[%clk 00:18:40]} {[%emt 00:00:14]} 9. Nf3
{[%clk 00:18:30]} {[%emt 00:00:15]} Qc7 {[%clk 00:18:17]} {[%emt 00:00:28]} 10.
O-O {[%clk 00:18:06]} {[%emt 00:00:29]} O-O-O {[%clk 00:18:03]} {[%emt
00:00:19]} 11. Ne2 {[%clk 00:15:05]} {[%emt 00:03:06]} d5 {[%clk 00:17:21]}
{[%emt 00:00:46]} 12. e5 {[%clk 00:14:41]} {[%emt 00:00:30]} Nf5 {[%clk
00:17:01]} {[%emt 00:00:25]} 13. Qd2 {[%clk 00:14:15]} {[%emt 00:00:31]} d4
{[%clk 00:16:01]} {[%emt 00:01:05]} 14. b4 {[%clk 00:12:21]} {[%emt 00:02:00]}
cxb4 {[%clk 00:13:48]} {[%emt 00:02:18]} 15. a3 {[%clk 00:11:04]} {[%emt
00:01:22]} Bc5 {[%clk 00:11:58]} {[%emt 00:01:55]} 16. axb4 {[%clk 00:10:01]}
{[%emt 00:01:08]} Bb6 {[%clk 00:11:35]} {[%emt 00:00:28]} 17. Rfc1 {[%clk
00:09:20]} {[%emt 00:00:46]} h5 {[%clk 00:10:59]} {[%emt 00:00:42]} 18. Kh1
{[%clk 00:05:56]} {[%emt 00:03:28]} h4 {[%clk 00:10:28]} {[%emt 00:00:36]} 19.
h3 {[%clk 00:04:10]} {[%emt 00:01:51]} Rh6 {[%clk 00:06:21]} {[%emt 00:04:12]}
20. c4 {[%clk 00:02:32]} {[%emt 00:01:43]} dxc3 {[%clk 00:06:08]} {[%emt
00:00:18]} 21. Rxc3 {[%clk 00:02:31]} {[%emt 00:00:06]} Kb8 {[%clk 00:03:30]}
{[%emt 00:02:43]} 22. d4 {[%clk 00:01:01]} {[%emt 00:01:35]} Qd7 {[%clk
00:02:37]} {[%emt 00:00:58]} 23. Rd1 {[%clk 00:00:21]} {[%emt 00:00:45]} Ng3+
{[%clk 00:01:25]} {[%emt 00:01:17]} 24. Nxg3 {[%clk 00:00:10]} {[%emt
00:00:15]} hxg3 {[%clk 00:01:28]} {[%emt 00:00:02]} 25. Qe1 {[%clk 00:00:12]}
{[%emt 00:00:04]} Qe7 {[%clk 00:00:25]} {[%emt 00:01:08]} 26. Qxg3 {[%clk
00:00:13]} {[%emt 00:00:04]} Rg6 {[%clk 00:00:24]} {[%emt 00:00:06]} 27. Qf2
{[%clk 00:00:08]} {[%emt 00:00:10]} Qxb4 {[%clk 00:00:16]} {[%emt 00:00:12]} 28.
Rb1 {[%clk 00:00:00]} {[%emt 00:00:09]} 0-1

[Event "MČR juniorů a juniorek v rapid šachu 2023"]
[Site "Czech Republic"]
[Date "2023.09.24"]
[Round "8.21"]
[White "Hosova, Sandra"]
[Black "Jun, Robert"]
[Result "1/2-1/2"]
[TimeControl "20 min + 5 sec per move"]
[WhiteFideId "397717"]
[BlackFideId "23709510"]
[WhiteElo "1682"]
[BlackElo "1340"]

1. d4 {[%clk 00:20:07]} {[%emt 00:00:02]} d5 {[%clk 00:20:10]} 2. Bf4 {[%clk
00:20:10]} {[%emt 00:00:02]} e6 {[%clk 00:20:13]} {[%emt 00:00:01]} 3. e3
{[%clk 00:20:13]} {[%emt 00:00:03]} c5 {[%clk 00:20:17]} {[%emt 00:00:01]} 4.
c3 {[%clk 00:20:15]} {[%emt 00:00:03]} Nc6 {[%clk 00:20:20]} {[%emt 00:00:02]}
5. Bd3 {[%clk 00:20:14]} {[%emt 00:00:06]} Nf6 {[%clk 00:20:17]} {[%emt
00:00:08]} 6. Nf3 {[%clk 00:20:16]} {[%emt 00:00:03]} cxd4 {[%clk 00:20:15]}
{[%emt 00:00:07]} 7. exd4 {[%clk 00:20:17]} {[%emt 00:00:04]} Bd6 {[%clk
00:20:18]} {[%emt 00:00:01]} 8. Bg3 {[%clk 00:20:05]} {[%emt 00:00:17]} Bxg3
{[%clk 00:20:21]} {[%emt 00:00:02]} 9. hxg3 {[%clk 00:20:09]} {[%emt 00:00:02]}
a6 {[%clk 00:20:19]} {[%emt 00:00:06]} 10. Nbd2 {[%clk 00:20:04]} {[%emt
00:00:09]} b5 {[%clk 00:20:13]} {[%emt 00:00:12]} 11. Ne5 {[%clk 00:19:39]}
{[%emt 00:00:31]} Nxe5 {[%clk 00:20:10]} {[%emt 00:00:07]} 12. dxe5 {[%clk
00:19:42]} {[%emt 00:00:02]} Nd7 {[%clk 00:20:15]} 13. f4 {[%clk 00:18:41]}
{[%emt 00:01:06]} Bb7 {[%clk 00:20:14]} {[%emt 00:00:05]} 14. Nf3 {[%clk
00:16:14]} {[%emt 00:02:32]} g6 {[%clk 00:19:16]} {[%emt 00:01:03]} 15. Ng5
{[%clk 00:13:00]} {[%emt 00:03:18]} h5 {[%clk 00:18:37]} {[%emt 00:00:44]} 16.
g4 {[%clk 00:11:21]} {[%emt 00:01:44]} Nxe5 {[%clk 00:18:29]} {[%emt 00:00:13]}
17. Bc2 {[%clk 00:09:10]} {[%emt 00:02:17]} Qb6 {[%clk 00:16:37]} {[%emt
00:01:56]} 18. fxe5 {[%clk 00:07:53]} {[%emt 00:01:23]} Qe3+ {[%clk 00:16:35]}
{[%emt 00:00:06]} 19. Qe2 {[%clk 00:07:55]} {[%emt 00:00:03]} Qxg5 {[%clk
00:16:39]} {[%emt 00:00:02]} 20. gxh5 {[%clk 00:07:01]} {[%emt 00:00:59]} Rxh5
{[%clk 00:16:35]} {[%emt 00:00:08]} 21. Rxh5 {[%clk 00:06:53]} {[%emt
00:00:14]} Qxh5 {[%clk 00:16:39]} {[%emt 00:00:01]} 22. Qxh5 {[%clk 00:05:47]}
{[%emt 00:01:11]} gxh5 {[%clk 00:16:42]} {[%emt 00:00:01]} 23. Kf2 {[%clk
00:05:51]} {[%emt 00:00:02]} Ke7 {[%clk 00:16:40]} {[%emt 00:00:06]} 24. Rh1
{[%clk 00:05:47]} {[%emt 00:00:09]} Rh8 {[%clk 00:16:44]} {[%emt 00:00:01]} 25.
Rh4 {[%clk 00:03:11]} {[%emt 00:02:42]} f6 {[%clk 00:16:25]} {[%emt 00:00:24]}
26. exf6+ {[%clk 00:03:13]} {[%emt 00:00:03]} Kxf6 {[%clk 00:16:28]} 27. g4
{[%clk 00:03:08]} {[%emt 00:00:10]} Kg5 {[%clk 00:16:13]} {[%emt 00:00:20]} 28.
Kg3 {[%clk 00:03:12]} {[%emt 00:00:02]} e5 {[%clk 00:16:09]} {[%emt 00:00:09]}
29. Bd1 {[%clk 00:03:02]} {[%emt 00:00:14]} d4 {[%clk 00:15:28]} {[%emt
00:00:46]} 30. cxd4 {[%clk 00:02:46]} {[%emt 00:00:20]} exd4 {[%clk 00:15:27]}
{[%emt 00:00:06]} 31. Rxh5+ {[%clk 00:01:02]} {[%emt 00:01:49]} Rxh5 {[%clk
00:15:30]} {[%emt 00:00:03]} 32. gxh5 {[%clk 00:01:06]} {[%emt 00:00:01]} Bd5
{[%clk 00:15:30]} {[%emt 00:00:05]} 33. a3 {[%clk 00:01:06]} {[%emt 00:00:05]}
Bf7 {[%clk 00:15:31]} {[%emt 00:00:03]} 34. Kf2 {[%clk 00:00:44]} {[%emt
00:00:27]} Kf4 {[%clk 00:15:14]} {[%emt 00:00:22]} 35. h6 {[%clk 00:00:18]}
{[%emt 00:00:32]} Bg6 {[%clk 00:15:17]} {[%emt 00:00:01]} 36. Bf3 {[%clk
00:00:12]} {[%emt 00:00:11]} d3 {[%clk 00:15:16]} {[%emt 00:00:06]} 37. b4
{[%clk 00:00:07]} {[%emt 00:00:11]} d2 {[%clk 00:14:45]} {[%emt 00:00:35]} 38.
Bd1 {[%clk 00:00:07]} {[%emt 00:00:06]} Bd3 {[%clk 00:14:38]} {[%emt 00:00:11]}
39. Bb3 {[%clk 00:00:09]} {[%emt 00:00:04]} Bc4 {[%clk 00:13:42]} {[%emt
00:01:01]} 40. Bc2 {[%clk 00:00:13]} {[%emt 00:00:01]} Bd3 {[%clk 00:13:36]}
{[%emt 00:00:11]} 41. Bb3 {[%clk 00:00:17]} {[%emt 00:00:01]} Bc4 {[%clk
00:13:37]} {[%emt 00:00:03]} 42. Bc2 {[%clk 00:00:12]} {[%emt 00:00:10]} Bd3
{[%clk 00:13:40]} {[%emt 00:00:01]} 43. Bb3 {[%clk 00:00:11]} {[%emt 00:00:06]}
1/2-1/2

[Event "MČR juniorů a juniorek v rapid šachu 2023"]
[Site "Czech Republic"]
[Date "2023.09.24"]
[Round "8.22"]
[White "Housa, Vojtech"]
[Black "Tegda, Vojtech"]
[Result "0-1"]
[TimeControl "20 min + 5 sec per move"]
[WhiteFideId "23736364"]
[BlackFideId "23723424"]
[WhiteElo "1539"]
[BlackElo "1959"]

1. e4 {[%clk 00:20:09]} {[%emt 00:00:01]} e5 {[%clk 00:20:00]} {[%emt
00:00:11]} 2. Bc4 {[%clk 00:20:12]} {[%emt 00:00:01]} Nf6 {[%clk 00:20:03]}
{[%emt 00:00:01]} 3. d4 {[%clk 00:20:16]} {[%emt 00:00:01]} exd4 {[%clk
00:19:46]} {[%emt 00:00:22]} 4. Bg5 {[%clk 00:19:41]} {[%emt 00:00:40]} d6
{[%clk 00:19:17]} {[%emt 00:00:34]} 5. Nf3 {[%clk 00:19:01]} {[%emt 00:00:44]}
Nc6 {[%clk 00:19:05]} {[%emt 00:00:17]} 6. O-O {[%clk 00:18:25]} {[%emt
00:00:41]} Ne5 {[%clk 00:18:31]} {[%emt 00:00:39]} 7. Nxe5 {[%clk 00:17:22]}
{[%emt 00:01:08]} dxe5 {[%clk 00:18:34]} {[%emt 00:00:02]} 8. f4 {[%clk
00:17:20]} {[%emt 00:00:07]} Bd6 {[%clk 00:15:23]} {[%emt 00:03:16]} 9. Bxf6
{[%clk 00:15:17]} {[%emt 00:02:07]} gxf6 {[%clk 00:15:12]} {[%emt 00:00:17]} 10.
Qh5 {[%clk 00:10:14]} {[%emt 00:05:08]} Qe7 {[%clk 00:14:46]} {[%emt 00:00:30]}
11. f5 {[%clk 00:09:53]} {[%emt 00:00:27]} Bd7 {[%clk 00:14:19]} {[%emt
00:00:31]} 12. Rf3 {[%clk 00:09:29]} {[%emt 00:00:29]} O-O-O {[%clk 00:14:15]}
{[%emt 00:00:10]} 13. Bxf7 {[%clk 00:07:44]} {[%emt 00:01:50]} Bc6 {[%clk
00:14:07]} {[%emt 00:00:13]} 14. Be6+ {[%clk 00:07:20]} {[%emt 00:00:29]} Kb8
{[%clk 00:14:12]} {[%emt 00:00:01]} 15. Nd2 {[%clk 00:07:10]} {[%emt 00:00:20]}
Bb4 {[%clk 00:13:58]} {[%emt 00:00:23]} 16. c3 {[%clk 00:04:59]} {[%emt
00:02:16]} dxc3 {[%clk 00:13:50]} {[%emt 00:00:13]} 17. bxc3 {[%clk 00:04:45]}
{[%emt 00:00:18]} Bc5+ {[%clk 00:13:51]} {[%emt 00:00:04]} 0-1

[Event "MČR juniorů a juniorek v rapid šachu 2023"]
[Site "Czech Republic"]
[Date "2023.09.24"]
[Round "8.23"]
[White "Rucabado, Stefan"]
[Black "Boff, Ondrej"]
[Result "1-0"]
[TimeControl "20 min + 5 sec per move"]
[WhiteFideId "23730315"]
[BlackFideId "23733950"]
[WhiteElo "1782"]
[BlackElo "1486"]

1. e4 {[%clk 00:20:09]} c5 {[%clk 00:20:08]} {[%emt 00:00:02]} 2. Nf3 {[%clk
00:20:12]} {[%emt 00:00:02]} Nc6 {[%clk 00:20:12]} {[%emt 00:00:01]} 3. d4
{[%clk 00:20:16]} cxd4 4. Nxd4 {[%clk 00:20:20]} e5 {[%clk 00:20:18]} {[%emt
00:00:01]} 5. Nb5 {[%clk 00:20:23]} {[%emt 00:00:02]} d6 {[%clk 00:20:20]}
{[%emt 00:00:02]} 6. N1c3 {[%clk 00:20:26]} {[%emt 00:00:02]} a6 {[%clk
00:20:24]} {[%emt 00:00:02]} 7. Na3 {[%clk 00:20:30]} Be7 {[%clk 00:20:28]}
{[%emt 00:00:01]} 8. Nd5 {[%clk 00:20:28]} {[%emt 00:00:07]} Nf6 {[%clk
00:20:09]} {[%emt 00:00:24]} 9. Nxf6+ {[%clk 00:20:31]} {[%emt 00:00:02]} Bxf6
{[%clk 00:20:12]} {[%emt 00:00:02]} 10. c4 {[%clk 00:20:27]} {[%emt 00:00:09]}
O-O {[%clk 00:20:08]} {[%emt 00:00:09]} 11. Be2 {[%clk 00:20:30]} {[%emt
00:00:01]} Be6 {[%clk 00:20:04]} {[%emt 00:00:09]} 12. O-O {[%clk 00:20:31]}
{[%emt 00:00:04]} Rc8 {[%clk 00:20:04]} {[%emt 00:00:05]} 13. Nc2 {[%clk
00:20:30]} {[%emt 00:00:07]} Be7 {[%clk 00:19:12]} {[%emt 00:00:57]} 14. Ne3
{[%clk 00:20:27]} {[%emt 00:00:08]} f5 {[%clk 00:19:08]} {[%emt 00:00:09]} 15.
exf5 {[%clk 00:20:17]} {[%emt 00:00:15]} Bxf5 {[%clk 00:19:09]} {[%emt
00:00:03]} 16. Nd5 {[%clk 00:19:44]} {[%emt 00:00:39]} Nd4 {[%clk 00:18:24]}
{[%emt 00:00:51]} 17. Be3 {[%clk 00:19:45]} {[%emt 00:00:03]} Nxe2+ {[%clk
00:15:27]} {[%emt 00:03:01]} 18. Qxe2 {[%clk 00:19:48]} {[%emt 00:00:02]} Be6
{[%clk 00:15:22]} {[%emt 00:00:10]} 19. Rfd1 {[%clk 00:19:00]} {[%emt
00:00:54]} Bxd5 {[%clk 00:15:07]} {[%emt 00:00:20]} 20. Rxd5 {[%clk 00:19:03]}
{[%emt 00:00:02]} Qc7 {[%clk 00:15:02]} {[%emt 00:00:09]} 21. b3 {[%clk
00:19:05]} {[%emt 00:00:04]} Qc6 {[%clk 00:14:41]} {[%emt 00:00:26]} 22. Rad1
{[%clk 00:19:05]} {[%emt 00:00:05]} Rf7 {[%clk 00:13:59]} {[%emt 00:00:46]} 23.
Qd2 {[%clk 00:18:45]} {[%emt 00:00:25]} Rcf8 {[%clk 00:13:37]} {[%emt
00:00:27]} 24. Rf1 {[%clk 00:17:51]} {[%emt 00:00:59]} h6 {[%clk 00:13:26]}
{[%emt 00:00:17]} 25. f4 {[%clk 00:17:50]} {[%emt 00:00:06]} g5 {[%clk
00:11:59]} {[%emt 00:01:32]} 26. g3 {[%clk 00:17:54]} {[%emt 00:00:01]} Rf5
{[%clk 00:11:28]} {[%emt 00:00:36]} 27. g4 {[%emt 00:00:26]} R5f7 {[%clk
00:11:19]} 28. f5 {[%clk 00:17:44]} {[%emt 00:00:07]} Rf6 {[%clk 00:11:14]}
{[%emt 00:00:10]} 29. h4 {[%clk 00:17:35]} {[%emt 00:00:14]} R6f7 {[%clk
00:10:43]} {[%emt 00:00:35]} 30. hxg5 {[%clk 00:16:55]} {[%emt 00:00:46]} hxg5
{[%clk 00:10:27]} {[%emt 00:00:21]} 31. Rf2 {[%clk 00:16:48]} {[%emt 00:00:11]}
Rg7 {[%clk 00:10:14]} {[%emt 00:00:18]} 32. Rh2 {[%clk 00:16:51]} {[%emt
00:00:02]} Rff7 {[%clk 00:09:50]} {[%emt 00:00:29]} 33. Rh5 {[%clk 00:16:47]}
{[%emt 00:00:09]} Rh7 {[%clk 00:09:16]} {[%emt 00:00:40]} 34. Rxh7 {[%clk
00:16:05]} {[%emt 00:00:46]} Rxh7 {[%clk 00:09:09]} {[%emt 00:00:12]} 35. Bxg5
{[%clk 00:16:00]} {[%emt 00:00:11]} Bxg5 {[%clk 00:09:03]} {[%emt 00:00:11]} 36.
Qxg5+ {[%clk 00:16:03]} {[%emt 00:00:02]} Rg7 {[%clk 00:09:06]} {[%emt
00:00:01]} 37. Qd8+ {[%clk 00:15:50]} {[%emt 00:00:18]} Kh7 {[%clk 00:09:06]}
{[%emt 00:00:05]} 38. g5 {[%emt 00:01:00]} Rg8 {[%clk 00:08:01]} {[%emt
00:00:11]} 39. g6+ {[%clk 00:15:50]} {[%emt 00:00:09]} Kh8 {[%clk 00:07:35]}
{[%emt 00:00:31]} 40. Qh4+ {[%clk 00:15:52]} {[%emt 00:00:04]} Kg7 {[%clk
00:07:39]} {[%emt 00:00:01]} 41. Qh7+ {[%clk 00:15:56]} Kf6 {[%clk 00:07:42]}
{[%emt 00:00:03]} 42. Qxg8 {[%clk 00:15:45]} {[%emt 00:00:14]} Qb6+ {[%clk
00:07:44]} {[%emt 00:00:05]} 43. Kg2 {[%clk 00:15:49]} Qe3 {[%clk 00:07:43]}
{[%emt 00:00:06]} 44. Rxd6+ {[%clk 00:15:17]} {[%emt 00:00:37]} Kg5 {[%clk
00:07:43]} {[%emt 00:00:05]} 45. Qd8+ {[%clk 00:14:36]} {[%emt 00:00:46]} Kg4
{[%clk 00:07:41]} {[%emt 00:00:06]} 46. Qb6 {[%clk 00:13:12]} {[%emt 00:01:29]}
Qf3+ {[%clk 00:03:50]} {[%emt 00:03:56]} 47. Kg1 {[%clk 00:13:16]} {[%emt
00:00:02]} Kh3 {[%clk 00:02:36]} {[%emt 00:01:18]} 48. Qf2 {[%clk 00:13:00]}
{[%emt 00:00:21]} Qg4+ {[%clk 00:02:31]} {[%emt 00:00:10]} 49. Kf1 {[%clk
00:13:04]} {[%emt 00:00:02]} Qe4 {[%clk 00:02:25]} {[%emt 00:00:11]} 50. Rd2
{[%clk 00:12:47]} {[%emt 00:00:22]} Qh1+ {[%clk 00:01:44]} {[%emt 00:00:47]} 51.
Ke2 {[%clk 00:12:51]} {[%emt 00:00:01]} e4 {[%clk 00:01:26]} {[%emt 00:00:22]}
52. Qe3+ {[%clk 00:12:42]} {[%emt 00:00:13]} Kg4 {[%clk 00:01:19]} {[%emt
00:00:13]} 53. g7 {[%clk 00:12:36]} {[%emt 00:00:11]} Qg2+ {[%clk 00:00:11]}
{[%emt 00:01:13]} 54. Kd1 {[%clk 00:12:39]} {[%emt 00:00:01]} Qf1+ {[%clk
00:00:11]} {[%emt 00:00:05]} 55. Kc2 {[%clk 00:12:44]} 1-0